fUSD/lending_fUSD_20250123
["ID","MTS","AMOUNT","RATE_DAILY","PERIOD"]
[350158645,1737660647744,-721.88,0.00017227,2]
[350158646,1737660647754,-790.71,0.00017227,2]
[350158647,1737660647763,-752.32,0.00017227,2]
[350158648,1737660647773,-500.0,0.00017227,2]
[350158649,1737660647783,-500.0,0.00017258,2]
[350158650,1737660647800,-500.0,0.00017259,2]
[350158651,1737660647810,-253.83480159,0.00017259,2]
[350158652,1737660647819,-500.0,0.00017259,2]
[350158653,1737660647828,-228.25128262,0.00017259,2]
[350158654,1737660647837,-500.0,0.00017259,2]
[350158655,1737660647847,-500.0,0.00017259,2]
[350158656,1737660647857,-582.79975933,0.00017259,2]
[350158657,1737660647866,-285.09580505,0.00017259,2]
[350158658,1737660647876,-488.91398043,0.00017259,2]
[350158659,1737660647885,-500.0,0.00017259,2]
[350158660,1737660647895,-500.0,0.00017259,2]
[350158661,1737660647905,-187.92452839,0.00017259,2]
[350158662,1737660647914,-178.41376934,0.00017259,2]
[350158663,1737660647924,-500.0,0.00017259,2]
[350158664,1737660647933,-500.0,0.00017259,2]
[350158665,1737660647943,-500.0,0.00017259,2]
[350158666,1737660647952,-500.0,0.00017259,2]
[350158667,1737660647962,-500.0,0.00017259,2]
[350158668,1737660647971,-500.0,0.00017259,2]
[350158669,1737660647981,-500.0,0.00017259,2]
[350158670,1737660647990,-500.0,0.00017259,2]
[350158671,1737660648000,-500.0,0.00017259,2]
[350158672,1737660648009,-500.0,0.00017259,2]
[350158673,1737660648020,-500.0,0.00017259,2]
[350158674,1737660648031,-500.0,0.00017259,2]
[350158675,1737660648045,-500.0,0.00017259,2]
[350158676,1737660648056,-500.0,0.00017259,2]
[350158677,1737660648066,-500.0,0.00017259,2]
[350158678,1737660648077,-500.0,0.00017259,2]
[350158679,1737660648087,-500.0,0.00017259,2]
[350158680,1737660648098,-500.0,0.00017259,2]
[350158681,1737660648110,-500.0,0.00017259,2]
[350158682,1737660648120,-500.0,0.00017259,2]
[350158683,1737660648130,-500.0,0.00017259,2]
[350158684,1737660648140,-500.0,0.00017259,2]
[350158685,1737660648150,-500.0,0.00017259,2]
[350158686,1737660648159,-500.0,0.00017259,2]
[350158687,1737660648169,-500.0,0.00017259,2]
[350158688,1737660648179,-393.78999311,0.00017259,2]
[350158689,1737660648188,-225.03091337,0.00017259,2]
[350158690,1737660648198,-500.0,0.00017259,2]
[350158691,1737660648207,-500.0,0.00017259,2]
[350158692,1737660648217,-500.0,0.00017259,2]
[350158693,1737660648226,-500.0,0.00017259,2]
[350158694,1737660648236,-462.60255689,0.00017259,2]
[350158695,1737660648246,-500.0,0.00017259,2]
[350158696,1737660648256,-500.0,0.00017259,2]
[350158697,1737660648266,-500.0,0.00017259,2]
[350158698,1737660648275,-459.23304827,0.00017259,2]
[350158699,1737660648285,-500.0,0.00017259,2]
[350158700,1737660648298,-500.0,0.00017259,2]
[350158701,1737660648308,-500.0,0.00017259,2]
[350158702,1737660648318,-500.0,0.00017259,2]
[350158703,1737660648328,-500.0,0.00017259,2]
[350158704,1737660648337,-500.0,0.00017259,2]
[350158705,1737660648347,-500.0,0.00017259,2]
[350158706,1737660648357,-502.81525247,0.00017259,2]
[350158707,1737660648367,-500.0,0.00017259,2]
[350158708,1737660648377,-500.0,0.00017259,2]
[350158709,1737660648386,-500.0,0.00017259,2]
[350158710,1737660648396,-500.0,0.00017259,2]
[350158711,1737660648407,-183.91519886,0.00017259,2]
[350158712,1737660648418,-500.0,0.00017259,2]
[350158713,1737660648427,-500.0,0.00017259,2]
[350158714,1737660648437,-500.0,0.00017259,2]
[350158715,1737660648446,-500.0,0.00017259,2]
[350158716,1737660648456,-500.0,0.00017259,2]
[350158717,1737660648466,-500.0,0.00017259,2]
[350158718,1737660648476,-500.0,0.00017259,2]
[350158719,1737660648487,-500.0,0.00017259,2]
[350158720,1737660648497,-500.0,0.00017259,2]
[350158721,1737660648507,-500.0,0.00017259,2]
[350158722,1737660648516,-500.0,0.00017259,2]
[350158723,1737660648526,-380.59110718,0.00017259,2]
[350158724,1737660648536,-521.06,0.00017259,2]
[350158725,1737660648547,-542.32,0.00017259,2]
[350158726,1737660648557,-500.0,0.00017259,2]
[350158727,1737660648569,-500.0,0.00017259,2]
[350158728,1737660648579,-500.0,0.00017259,2]
[350158729,1737660648589,-500.0,0.00017259,2]
[350158730,1737660648599,-500.0,0.00017259,2]
[350158731,1737660648610,-500.0,0.00017259,2]
[350158732,1737660648621,-500.0,0.00017259,2]
[350158733,1737660648631,-500.0,0.00017259,2]
[350158734,1737660648641,-500.0,0.00017259,2]
[350158735,1737660648651,-505.88,0.00017259,2]
[350158736,1737660648661,-289.48430533,0.00017259,2]
[350158737,1737660648671,-500.0,0.00017259,2]
[350158738,1737660648681,-500.0,0.00017259,2]
[350158739,1737660648695,-500.0,0.00017259,2]
[350158740,1737660648705,-500.0,0.00017259,2]
[350158741,1737660648715,-500.0,0.00017259,2]
[350158742,1737660648724,-500.0,0.00017259,2]
[350158743,1737660648735,-500.0,0.00017259,2]
[350158744,1737660648744,-1053.45,0.00017259,2]
[350158745,1737660648754,-639.52,0.00017259,2]
[350158746,1737660648764,-500.0,0.00017259,2]
[350158747,1737660648776,-500.0,0.00017259,2]
[350158748,1737660648787,-538.25,0.00017259,2]
[350158749,1737660648799,-500.0,0.00017259,2]
[350158750,1737660648811,-500.0,0.00017259,2]
[350158751,1737660648821,-500.0,0.00017259,2]
[350158752,1737660648831,-500.0,0.00017259,2]
[350158753,1737660648981,-500.0,0.00017259,2]
[350158754,1737660648990,-576.69,0.00017259,2]
[350158755,1737660649000,-548.4326,0.00017259,2]
[350158756,1737660649010,-500.0,0.00017259,2]
[350158757,1737660649019,-500.0,0.00017259,2]
[350158758,1737660649028,-500.0,0.00017259,2]
[350158759,1737660649040,-500.0,0.00017259,2]
[350158760,1737660649049,-1792.69,0.00017259,2]
[350158761,1737660649059,-500.0,0.00017259,2]
[350158762,1737660649068,-500.0,0.00017259,2]
[350158763,1737660649078,-500.0,0.00017259,2]
[350158764,1737660649087,-608.16,0.00017259,2]
[350158765,1737660649096,-500.0,0.00017259,2]
[350158766,1737660649105,-724.53,0.00017259,2]
[350158767,1737660649114,-500.0,0.00017259,2]
[350158768,1737660649123,-855.54,0.00017259,2]
[350158769,1737660649132,-500.0,0.00017259,2]
[350158770,1737660649141,-641.11,0.00017259,2]
[350158771,1737660649151,-500.0,0.00017259,2]
[350158772,1737660649160,-500.0,0.00017259,2]
[350158773,1737660649169,-500.0,0.00017259,2]
[350158774,1737660649179,-1332.55,0.00017259,2]
[350158775,1737660649189,-565.08,0.00017259,2]
[350158776,1737660649198,-500.0,0.00017259,2]
[350158777,1737660649208,-500.0,0.00017259,2]
[350158778,1737660649217,-500.0,0.00017259,2]
[350158779,1737660649227,-500.0,0.00017259,2]
[350158780,1737660649236,-1129.12,0.00017259,2]
[350158781,1737660649245,-535.73,0.00017259,2]
[350158782,1737660649256,-500.0,0.00017259,2]
[350158783,1737660649266,-500.0,0.00017259,2]
[350158784,1737660649276,-555.98,0.00017259,2]
[350158785,1737660649287,-500.0,0.00017259,2]
[350158786,1737660649300,-500.0,0.00017259,2]
[350158787,1737660649310,-772.84,0.00017259,2]
[350158788,1737660649321,-2965.73,0.00017259,2]
[350158789,1737660649331,-500.0,0.00017259,2]
[350158790,1737660649340,-1149.68,0.00017259,2]
[350158791,1737660649350,-500.0,0.00017259,2]
[350158792,1737660649360,-441.61,0.00017259,2]
[350158793,1737660649370,-755.23,0.00017259,2]
[350158794,1737660649379,-500.0,0.00017259,2]
[350158795,1737660649389,-862.75,0.00017259,2]
[350158796,1737660649398,-500.0,0.00017259,2]
[350158797,1737660649409,-500.0,0.00017259,2]
[350158798,1737660649419,-500.0,0.00017259,2]
[350158799,1737660649429,-500.0,0.00017259,2]
[350158800,1737660649439,-500.0,0.00017259,2]
[350158801,1737660649448,-530.62516708,0.00017259,2]
[350158802,1737660649458,-796.13,0.00017259,2]
[350158803,1737660649467,-500.0,0.00017259,2]
[350158804,1737660649477,-500.0,0.00017259,2]
[350158805,1737660649487,-805.63,0.00017259,2]
[350158806,1737660649496,-1391.92,0.00017259,2]
[350158807,1737660649506,-500.0,0.00017259,2]
[350158808,1737660649516,-500.0,0.00017259,2]
[350158809,1737660649525,-500.0,0.00017259,2]
[350158810,1737660649535,-500.0,0.00017259,2]
[350158811,1737660649549,-2468.27,0.00017259,2]
[350158812,1737660649559,-539.25,0.00017259,2]
[350158813,1737660649569,-500.0,0.00017259,2]
[350158814,1737660649579,-500.0,0.00017259,2]
[350158815,1737660649588,-567.93,0.00017259,2]
[350158816,1737660649598,-500.0,0.00017259,2]
[350158817,1737660649608,-518.53,0.00017259,2]
[350158818,1737660649619,-764.13,0.00017259,2]
[350158819,1737660649629,-500.0,0.00017259,2]
[350158820,1737660649639,-786.4,0.00017259,2]
[350158821,1737660649648,-711.52,0.00017259,2]
[350158822,1737660649657,-416.72955776,0.00017259,2]
[350158823,1737660649666,-500.0,0.00017259,2]
[350158824,1737660649677,-500.0,0.0001726,2]
[350158825,1737660649687,-500.0,0.0001726,2]
[350158826,1737660649696,-500.0,0.0001726,2]
[350158827,1737660649709,-500.0,0.0001726,2]
[350158828,1737660649719,-500.0,0.0001726,2]
[350158829,1737660649728,-500.0,0.0001726,2]
[350158830,1737660649738,-500.0,0.0001726,2]
[350158831,1737660649748,-294.73785438,0.0001726,2]
[350158832,1737660649757,-500.0,0.0001726,2]
[350158833,1737660649766,-500.0,0.0001726,2]
[350158834,1737660649777,-500.0,0.0001726,2]
[350158835,1737660649788,-500.0,0.0001726,2]
[350158836,1737660649799,-500.0,0.0001726,2]
[350158837,1737660649808,-505.91,0.0001726,2]
[350158838,1737660649817,-644.14,0.0001726,2]
[350158839,1737660649826,-500.0,0.0001726,2]
[350158840,1737660649836,-500.0,0.0001726,2]
[350158841,1737660649846,-500.0,0.0001726,2]
[350158842,1737660649855,-1678.74,0.0001726,2]
[350158843,1737660649865,-648.9,0.0001726,2]
[350158844,1737660649876,-500.0,0.0001726,2]
[350158845,1737660649885,-1211.44,0.0001726,2]
[350158846,1737660649894,-500.0,0.0001726,2]
[350158847,1737660649904,-684.65,0.0001726,2]
[350158848,1737660649913,-978.81,0.0001726,2]
[350158849,1737660649923,-658.78,0.0001726,2]
[350158850,1737660649932,-729.6,0.0001726,2]
[350158851,1737660649941,-693.86,0.0001726,2]
[350158852,1737660649950,-1581.62,0.0001726,2]
[350158853,1737660649959,-1435.94,0.0001726,2]
[350158854,1737660649969,-644.79,0.0001726,2]
[350158855,1737660649978,-505.44,0.0001726,2]
[350158856,1737660649988,-500.0,0.0001726,2]
[350158857,1737660649997,-1378.61,0.0001726,2]
[350158858,1737660650006,-500.0,0.0001726,2]
[350158859,1737660650017,-500.0,0.0001726,2]
[350158860,1737660650026,-1158.98,0.0001726,2]
[350158861,1737660650035,-1729.09,0.0001726,2]
[350158862,1737660650046,-500.0,0.0001726,2]
[350158863,1737660650055,-500.0,0.0001726,2]
[350158864,1737660650065,-500.0,0.0001726,2]
[350158865,1737660650074,-1338.73,0.0001726,2]
[350158866,1737660650084,-913.15,0.0001726,2]
[350158867,1737660650093,-649.62676109,0.0001726,2]
[350158868,1737660650102,-643.94723346,0.00017314,2]
[350158869,1737660650112,-5726.25928286,0.00017412,2]
[350158870,1737660650121,-500.0,0.00017501,2]
[350158871,1737660650131,-511.36,0.00017501,2]
[350158872,1737660650140,-333.616686,0.00017501,2]
[350158873,1737660650149,-1278.58,0.00017501,2]
[350158874,1737660650159,-574.57,0.00017501,2]
[350158875,1737660650169,-500.0,0.00017501,2]
[350158876,1737660650178,-683.02,0.00017501,2]
[350158877,1737660650187,-556.88,0.00017501,2]
[350158878,1737660650196,-1026.27,0.00017501,2]
[350158879,1737660650204,-809.65,0.00017501,2]
[350158880,1737660650214,-671.67,0.00017501,2]
[350158881,1737660650223,-1437.99,0.00017501,2]
[350158882,1737660650232,-1730.18,0.00017501,2]
[350158883,1737660650242,-1598.79,0.00017501,2]
[350158884,1737660650251,-567.12,0.00017501,2]
[350158885,1737660650260,-1280.17,0.00017501,2]
[350158886,1737660650269,-1378.0,0.00017501,2]
[350158887,1737660650279,-1460.02,0.00017501,2]
[350158888,1737660650288,-2944.03,0.00017501,2]
[350158889,1737660650299,-913.9,0.00017501,2]
[350158890,1737660650308,-558.63,0.00017501,2]
[350158891,1737660650317,-1834.11,0.00017501,2]
[350158892,1737660650326,-500.0,0.00017501,2]
[350158893,1737660650335,-893.7,0.00017501,2]
[350158894,1737660650344,-721.88,0.00017501,2]
[350158895,1737660650353,-790.71,0.00017501,2]
[350158896,1737660650362,-752.32,0.00017501,2]
[350158897,1737660650371,-500.0,0.00017501,2]
[350158898,1737660650380,-500.0,0.00017533,2]
[350158899,1737660650389,-500.0,0.00017533,2]
[350158900,1737660650399,-500.0,0.00017533,2]
[350158901,1737660650407,-500.0,0.00017533,2]
[350158902,1737660650416,-500.0,0.00017533,2]
[350158903,1737660650426,-500.0,0.00017533,2]
[350158904,1737660650435,-500.0,0.00017533,2]
[350158905,1737660650444,-500.0,0.00017533,2]
[350158906,1737660650454,-500.0,0.00017533,2]
[350158907,1737660650463,-500.0,0.00017533,2]
[350158908,1737660650471,-500.0,0.00017533,2]
[350158909,1737660650480,-500.0,0.00017533,2]
[350158910,1737660650490,-500.0,0.00017533,2]
[350158911,1737660650499,-500.0,0.00017533,2]
[350158912,1737660650508,-500.0,0.00017533,2]
[350158913,1737660650517,-500.0,0.00017533,2]
[350158914,1737660650526,-500.0,0.00017533,2]
[350158915,1737660650535,-500.0,0.00017533,2]
[350158916,1737660650546,-500.0,0.00017533,2]
[350158917,1737660650555,-500.0,0.00017533,2]
[350158918,1737660650564,-500.0,0.00017533,2]
[350158919,1737660650573,-500.0,0.00017533,2]
[350158920,1737660650583,-500.0,0.00017533,2]
[350158921,1737660650593,-500.0,0.00017533,2]
[350158922,1737660650603,-500.0,0.00017533,2]
[350158923,1737660650612,-500.0,0.00017533,2]
[350158924,1737660650621,-500.0,0.00017533,2]
[350158925,1737660650630,-500.0,0.00017533,2]
[350158926,1737660650640,-500.0,0.00017533,2]
[350158927,1737660650649,-596.48373793,0.00017533,2]
[350158928,1737660650659,-500.0,0.00017533,2]
[350158929,1737660650668,-500.0,0.00017533,2]
[350158930,1737660650678,-500.0,0.00017533,2]
[350158931,1737660650689,-500.0,0.00017533,2]
[350158932,1737660650700,-500.0,0.00017533,2]
[350158933,1737660650710,-500.0,0.00017533,2]
[350158934,1737660650719,-264.1047473,0.00017533,2]
[350158935,1737660650729,-521.06,0.00017533,2]
[350158936,1737660650738,-542.32,0.00017533,2]
[350158937,1737660650747,-500.0,0.00017533,2]
[350158938,1737660650756,-500.0,0.00017533,2]
[350158939,1737660650765,-505.88,0.00017533,2]
[350158940,1737660650777,-500.0,0.00017533,2]
[350158941,1737660650785,-500.0,0.00017533,2]
[350158942,1737660650796,-1053.45,0.00017533,2]
[350158943,1737660650806,-639.52,0.00017533,2]
[350158944,1737660650815,-538.25,0.00017533,2]
[350158945,1737660650824,-500.0,0.00017533,2]
[350158946,1737660650834,-576.69,0.00017533,2]
[350158947,1737660650843,-500.0,0.00017533,2]
[350158948,1737660650853,-1792.69,0.00017533,2]
[350158949,1737660650862,-500.0,0.00017533,2]
[350158950,1737660650871,-500.0,0.00017533,2]
[350158951,1737660650879,-608.16,0.00017533,2]
[350158952,1737660650889,-500.0,0.00017533,2]
[350158953,1737660650898,-724.53,0.00017533,2]
[350158954,1737660650907,-855.54,0.00017533,2]
[350158955,1737660650916,-641.11,0.00017533,2]
[350158956,1737660650926,-500.0,0.00017533,2]
[350158957,1737660650937,-1332.55,0.00017533,2]
[350158958,1737660650947,-565.08,0.00017533,2]
[350158959,1737660650959,-280.21360826,0.00017533,2]
[350158960,1737660650968,-1129.12,0.00017533,2]
[350158961,1737660650977,-535.73,0.00017533,2]
[350158962,1737660650987,-500.0,0.00017533,2]
[350158963,1737660650996,-555.98,0.00017533,2]
[350158964,1737660651004,-500.0,0.00017533,2]
[350158965,1737660651013,-500.0,0.00017533,2]
[350158966,1737660651022,-772.84,0.00017533,2]
[350158967,1737660651031,-2965.73,0.00017533,2]
[350158968,1737660651041,-500.0,0.00017533,2]
[350158969,1737660651050,-1149.68,0.00017533,2]
[350158970,1737660651059,-500.0,0.00017533,2]
[350158971,1737660651068,-755.23,0.00017533,2]
[350158972,1737660651077,-500.0,0.00017533,2]
[350158973,1737660651086,-862.75,0.00017533,2]
[350158974,1737660651095,-521.79860944,0.00017533,2]
[350158975,1737660651105,-500.0,0.00017533,2]
[350158976,1737660651114,-500.0,0.00017533,2]
[350158977,1737660651124,-796.13,0.00017533,2]
[350158978,1737660651133,-500.0,0.00017533,2]
[350158979,1737660651143,-805.63,0.00017533,2]
[350158980,1737660651152,-1391.92,0.00017533,2]
[350158981,1737660651162,-500.0,0.00017533,2]
[350158982,1737660651171,-500.0,0.00017533,2]
[350158983,1737660651180,-500.0,0.00017533,2]
[350158984,1737660651190,-500.0,0.00017533,2]
[350158985,1737660651199,-2468.27,0.00017533,2]
[350158986,1737660651208,-539.25,0.00017533,2]
[350158987,1737660651218,-500.0,0.00017533,2]
[350158988,1737660651228,-500.0,0.00017533,2]
[350158989,1737660651238,-567.93,0.00017533,2]
[350158990,1737660651247,-500.0,0.00017533,2]
[350158991,1737660651257,-518.53,0.00017533,2]
[350158992,1737660651266,-764.13,0.00017533,2]
[350158993,1737660651276,-500.0,0.00017533,2]
[350158994,1737660651286,-786.4,0.00017533,2]
[350158995,1737660651297,-711.52,0.00017533,2]
[350158996,1737660651307,-500.0,0.00017534,2]
[350158997,1737660651316,-254.9167766,0.00017534,2]
[350158998,1737660651326,-500.0,0.00017534,2]
[350158999,1737660651335,-500.0,0.00017534,2]
[350159000,1737660651344,-500.0,0.00017534,2]
[350159001,1737660651354,-500.0,0.00017534,2]
[350159002,1737660651364,-500.0,0.00017534,2]
[350159003,1737660651374,-500.0,0.00017534,2]
[350159004,1737660651384,-500.0,0.00017534,2]
[350159005,1737660651393,-500.0,0.00017534,2]
[350159006,1737660651403,-505.91,0.00017534,2]
[350159007,1737660651412,-644.14,0.00017534,2]
[350159008,1737660651421,-500.0,0.00017534,2]
[350159009,1737660651431,-437.65,0.00017534,2]
[350159010,1737660651441,-500.0,0.00017534,2]
[350159011,1737660651450,-648.9,0.00017534,2]
[350159012,1737660651459,-1678.74,0.00017534,2]
[350159013,1737660651468,-500.0,0.00017534,2]
[350159014,1737660651478,-1211.44,0.00017534,2]
[350159015,1737660651487,-500.0,0.00017534,2]
[350159016,1737660651496,-684.65,0.00017534,2]
[350159017,1737660651505,-978.81,0.00017534,2]
[350159018,1737660651515,-658.78,0.00017534,2]
[350159019,1737660651524,-729.6,0.00017534,2]
[350159020,1737660651533,-693.86,0.00017534,2]
[350159021,1737660651545,-1581.62,0.00017534,2]
[350159022,1737660651555,-1435.94,0.00017534,2]
[350159023,1737660651564,-644.79,0.00017534,2]
[350159024,1737660651574,-505.44,0.00017534,2]
[350159025,1737660651583,-500.0,0.00017534,2]
[350159026,1737660651592,-1378.61,0.00017534,2]
[350159027,1737660651607,-500.0,0.00017534,2]
[350159028,1737660651616,-500.0,0.00017534,2]
[350159029,1737660651626,-1158.98,0.00017534,2]
[350159030,1737660651635,-1729.09,0.00017534,2]
[350159031,1737660651644,-500.0,0.00017534,2]
[350159032,1737660651654,-500.0,0.00017534,2]
[350159033,1737660651663,-500.0,0.00017534,2]
[350159034,1737660651673,-1338.73,0.00017534,2]
[350159035,1737660651682,-913.15,0.00017534,2]
[350159036,1737660651691,-144.96511978,0.00017555,2]
[350159037,1737660651876,-321.96495849,0.00017555,2]
[350159038,1737660651892,-177.01715519,0.00017555,2]
[350159039,1737660651902,-437.86,0.00017639,2]
[350159040,1737660651911,-150.0,0.00017639,2]
[350159041,1737660651920,-150.0,0.00017639,2]
[350159042,1737660651930,-150.0,0.00017639,2]
[350159043,1737660651939,-150.0,0.00017639,2]
[350159044,1737660651949,-150.0,0.00017639,2]
[350159045,1737660651958,-437.86,0.00017639,2]
[350159046,1737660651967,-150.0,0.00017639,2]
[350159047,1737660651976,-300.0,0.00017639,2]
[350159048,1737660651987,-150.0,0.00017639,2]
[350159049,1737660651996,-300.0,0.00017639,2]
[350159050,1737660652006,-437.86,0.00017639,2]
[350159051,1737660652163,-300.0,0.00017639,2]
[350159052,1737660652173,-150.0,0.00017639,2]
[350159053,1737660652183,-150.0,0.00017639,2]
[350159054,1737660652193,-150.0,0.00017639,2]
[350159055,1737660652203,-437.86,0.00017639,2]
[350159056,1737660652212,-150.0,0.00017639,2]
[350159057,1737660652221,-5726.25928286,0.00017706,2]
[350159058,1737660652231,-1089.0806,0.00017708,2]
[350159059,1737660652240,-500.0,0.00017775,2]
[350159060,1737660652250,-511.36,0.00017775,2]
[350159061,1737660652261,-333.616686,0.00017775,2]
[350159062,1737660652271,-151.0,0.00017775,2]
[350159063,1737660652281,-794.14396535,0.00017775,2]
[350159064,1737660652296,-484.43603465,0.00017775,2]
[350159065,1737660652305,-151.0,0.00017775,2]
[350159066,1737660652314,-574.57,0.00017775,2]
[350159067,1737660652323,-67.03400635,0.00017775,2]
[350159068,1737660652340,-195.59462575,0.00017775,2]
[350159069,1737660652349,-683.02,0.00017775,2]
[350159070,1737660652359,-556.88,0.00017775,2]
[350159071,1737660652368,-151.0,0.00017775,2]
[350159072,1737660652377,-151.0,0.00017775,2]
[350159073,1737660652386,-1026.27,0.00017775,2]
[350159074,1737660652395,-222.14978,0.00017775,2]
[350159075,1737660652404,-222.14978,0.00017775,2]
[350159076,1737660652413,-809.65,0.00017775,2]
[350159077,1737660652421,-671.67,0.00017775,2]
[350159078,1737660652431,-190.212307,0.00017775,2]
[350159079,1737660652440,-190.212307,0.00017775,2]
[350159080,1737660652449,-1437.99,0.00017775,2]
[350159081,1737660652458,-151.0,0.00017775,2]
[350159082,1737660652467,-1730.18,0.00017775,2]
[350159083,1737660652477,-1598.79,0.00017775,2]
[350159084,1737660652486,-567.12,0.00017775,2]
[350159085,1737660652495,-1280.17,0.00017775,2]
[350159086,1737660652504,-1378.0,0.00017775,2]
[350159087,1737660652513,-1460.02,0.00017775,2]
[350159088,1737660652522,-2944.03,0.00017775,2]
[350159089,1737660652531,-913.9,0.00017775,2]
[350159090,1737660652542,-558.63,0.00017775,2]
[350159091,1737660652551,-1834.11,0.00017775,2]
[350159092,1737660652560,-500.0,0.00017775,2]
[350159093,1737660652570,-893.7,0.00017775,2]
[350159094,1737660652579,-721.88,0.00017775,2]
[350159095,1737660652588,-790.71,0.00017775,2]
[350159096,1737660652599,-752.32,0.00017775,2]
[350159097,1737660652609,-500.0,0.00017775,2]
[350159098,1737660652618,-643.94723346,0.00017797,2]
[350159099,1737660652627,-500.0,0.00017807,2]
[350159100,1737660652636,-500.0,0.00017807,2]
[350159101,1737660652646,-500.0,0.00017807,2]
[350159102,1737660652655,-500.0,0.00017807,2]
[350159103,1737660652664,-500.0,0.00017807,2]
[350159104,1737660652673,-500.0,0.00017807,2]
[350159105,1737660652682,-500.0,0.00017807,2]
[350159106,1737660652692,-500.0,0.00017807,2]
[350159107,1737660652703,-500.0,0.00017807,2]
[350159108,1737660652712,-500.0,0.00017807,2]
[350159109,1737660652722,-500.0,0.00017807,2]
[350159110,1737660652731,-500.0,0.00017807,2]
[350159111,1737660652742,-428.42521825,0.00017807,2]
[350159112,1737660652751,-500.0,0.00017807,2]
[350159113,1737660652760,-500.0,0.00017807,2]
[350159114,1737660652769,-500.0,0.00017807,2]
[350159115,1737660652779,-500.0,0.00017807,2]
[350159116,1737660652788,-500.0,0.00017807,2]
[350159117,1737660652799,-500.0,0.00017807,2]
[350159118,1737660652808,-500.0,0.00017807,2]
[350159119,1737660652818,-500.0,0.00017807,2]
[350159120,1737660652827,-500.0,0.00017807,2]
[350159121,1737660652837,-500.0,0.00017807,2]
[350159122,1737660652846,-500.0,0.00017807,2]
[350159123,1737660652855,-500.0,0.00017807,2]
[350159124,1737660652865,-500.0,0.00017807,2]
[350159125,1737660652874,-500.0,0.00017807,2]
[350159126,1737660652884,-500.0,0.00017807,2]
[350159127,1737660652893,-500.0,0.00017807,2]
[350159128,1737660652902,-521.06,0.00017807,2]
[350159129,1737660652911,-542.32,0.00017807,2]
[350159130,1737660652929,-500.0,0.00017807,2]
[350159131,1737660652940,-500.0,0.00017807,2]
[350159132,1737660652950,-505.88,0.00017807,2]
[350159133,1737660652960,-500.0,0.00017807,2]
[350159134,1737660652970,-500.0,0.00017807,2]
[350159135,1737660652980,-1053.45,0.00017807,2]
[350159136,1737660652990,-151.0,0.00017807,2]
[350159137,1737660653000,-639.52,0.00017807,2]
[350159138,1737660653011,-538.25,0.00017807,2]
[350159139,1737660653022,-500.0,0.00017807,2]
[350159140,1737660653032,-576.69,0.00017807,2]
[350159141,1737660653044,-500.0,0.00017807,2]
[350159142,1737660653055,-1792.69,0.00017807,2]
[350159143,1737660653065,-500.0,0.00017807,2]
[350159144,1737660653076,-500.0,0.00017807,2]